[Event "Live Chess"]
[Site "Chess.com"]
[Date "2023.05.21"]
[Round "-"]
[White "wadsy27"]
[Black "bedsdrout"]
[Result "1/2-1/2"]
[WhiteElo "2539"]
[BlackElo "1583"]
[TimeControl "300"]
[EndTime "7:39:32 PDT"]
[Termination "Game drawn by repetition"]

1. d4 {[%clk 0:04:58]} 1... Nf6 {[%clk 0:04:57.8]} 2. c4 {[%clk 0:04:56.1]} 2...
e6 {[%clk 0:04:48.3]} 3. Nf3 {[%clk 0:04:54.2]} 3... d5 {[%clk 0:04:44.7]} 4. g3
{[%clk 0:04:53.1]} 4... Be7 {[%clk 0:04:42.5]} 5. Bg2 {[%clk 0:04:52.4]} 5... c5
{[%clk 0:04:40.2]} 6. cxd5 {[%clk 0:04:50.3]} 6... exd5 {[%clk 0:04:38.6]} 7.
O-O {[%clk 0:04:48.1]} 7... Nc6 {[%clk 0:04:36.6]} 8. dxc5 {[%clk 0:04:46.8]}
8... O-O {[%clk 0:04:34.3]} 9. a3 {[%clk 0:04:46.5]} 9... Ne4 {[%clk 0:04:32.4]}
10. b4 {[%clk 0:04:41.8]} 10... Bf6 {[%clk 0:04:26.9]} 11. Ra2 {[%clk
0:04:40.5]} 11... Bg4 {[%clk 0:04:24.5]} 12. Bb2 {[%clk 0:04:37.9]} 12... Bxb2
{[%clk 0:04:21.3]} 13. Rxb2 {[%clk 0:04:33.5]} 13... a5 {[%clk 0:04:19.4]} 14.
h3 {[%clk 0:04:30.9]} 14... Qf6 {[%clk 0:04:17.2]} 15. Rb3 {[%clk 0:04:24.2]}
15... a4 {[%clk 0:04:14.5]} 16. Rd3 {[%clk 0:04:19.2]} 16... Be6 {[%clk
0:04:11.7]} 17. Nd4 {[%clk 0:04:16.7]} 17... Ne5 {[%clk 0:04:07.9]} 18. Re3
{[%clk 0:04:04.1]} 18... Nc4 {[%clk 0:04:05.7]} 19. Rf3 {[%clk 0:04:02.4]} 19...
Qh6 {[%clk 0:04:02.8]} 20. Nf5 {[%clk 0:03:46.2]} 20... Qf6 {[%clk 0:04:00.5]}
21. Nd6 {[%clk 0:03:43.1]} 21... Qb2 {[%clk 0:03:57.8]} 22. Nxc4 {[%clk
0:03:39.3]} 22... dxc4 {[%clk 0:03:55.6]} 23. Qc1 {[%clk 0:03:36.9]} 23... Qxc1
{[%clk 0:03:40.7]} 24. Rxc1 {[%clk 0:03:36.8]} 24... f5 {[%clk 0:03:38.5]} 25.
Nc3 {[%clk 0:03:33.1]} 25... Rfe8 {[%clk 0:03:36.3]} 26. Nxe4 {[%clk 0:03:31.8]}
26... fxe4 {[%clk 0:03:34.5]} 27. Re3 {[%clk 0:03:31.2]} 27... Bd5 {[%clk
0:03:31.7]} 28. Rd1 {[%clk 0:03:19.4]} 28... Rad8 {[%clk 0:03:26.1]} 29. Bxe4
{[%clk 0:03:17.2]} 29... Bc6 {[%clk 0:03:22.2]} 30. Rxd8 {[%clk 0:03:15]} 30...
Rxd8 {[%clk 0:03:20.2]} 31. Bxc6 {[%clk 0:03:14.1]} 31... bxc6 {[%clk
0:03:15.3]} 32. Rc3 {[%clk 0:03:13.2]} 32... Rd2 {[%clk 0:03:13.1]} 33. Rxc4
{[%clk 0:03:08.4]} 33... Rxe2 {[%clk 0:03:11.4]} 34. Rd4 {[%clk 0:03:03.5]}
34... Ra2 {[%clk 0:03:08.9]} 35. Rd6 {[%clk 0:03:02.8]} 35... Rxa3 {[%clk
0:03:05.5]} 36. Rxc6 {[%clk 0:03:02.1]} 36... Rb3 {[%clk 0:03:03.1]} 37. Rb6
{[%clk 0:03:01.2]} 37... Kf7 {[%clk 0:03:00.6]} 38. Kg2 {[%clk 0:02:55.1]} 38...
Rb2 {[%clk 0:02:58.6]} 39. c6 {[%clk 0:02:50.1]} 39... Ke6 {[%clk 0:02:56.2]}
40. b5 {[%clk 0:02:48.3]} 40... a3 {[%clk 0:02:53.9]} 41. Ra6 {[%clk 0:02:45.3]}
41... a2 {[%clk 0:02:52]} 42. Ra7 {[%clk 0:02:34.6]} 42... Kd6 {[%clk
0:02:49.4]} 43. c7 {[%clk 0:02:29.1]} 43... Kd7 {[%clk 0:02:47]} 44. b6 {[%clk
0:02:27.6]} 44... Rxb6 {[%clk 0:02:43.9]} 45. Rxa2 {[%clk 0:02:27]} 45... Rb7
{[%clk 0:02:42.2]} 46. Rc2 {[%clk 0:02:25.1]} 46... Rxc7 {[%clk 0:02:39.3]} 47.
Rxc7+ {[%clk 0:02:24.7]} 47... Kxc7 {[%clk 0:02:37.6]} 48. Kf3 {[%clk
0:02:24.6]} 48... Kd6 {[%clk 0:02:34.4]} 49. Ke4 {[%clk 0:02:23.9]} 49... Ke6
{[%clk 0:02:33]} 50. f4 {[%clk 0:02:23.3]} 50... h5 {[%clk 0:02:31.3]} 51. f5+
{[%clk 0:02:17.9]} 51... Kf6 {[%clk 0:02:29.6]} 52. h4 {[%clk 0:02:15.1]} 52...
Ke7 {[%clk 0:02:27.3]} 53. Ke5 {[%clk 0:02:09.3]} 53... Kf7 {[%clk 0:02:25.8]}
54. Ke4 {[%clk 0:02:04.8]} 54... Ke7 {[%clk 0:02:23.7]} 55. Ke5 {[%clk
0:01:58.9]} 55... Kf7 {[%clk 0:02:22]} 56. f6 {[%clk 0:01:57.6]} 56... gxf6+
{[%clk 0:02:18.2]} 57. Kf5 {[%clk 0:01:57.1]} 57... Kg7 {[%clk 0:02:16]} 58. Ke6
{[%clk 0:01:56.6]} 58... Kg6 {[%clk 0:02:13.1]} 59. Ke7 {[%clk 0:01:56.1]} 59...
Kg7 {[%clk 0:02:10.9]} 60. Ke8 {[%clk 0:01:53.6]} 60... Kg8 {[%clk 0:02:08.5]}
61. Ke7 {[%clk 0:01:52.3]} 61... Kg7 {[%clk 0:02:06]} 62. Kd6 {[%clk 0:01:47.6]}
62... Kh6 {[%clk 0:01:52.2]} 63. Kd7 {[%clk 0:01:40.9]} 63... Kh7 {[%clk
0:01:50.2]} 64. Ke7 {[%clk 0:01:39.8]} 64... Kg7 {[%clk 0:01:48.2]} 1/2-1/2

[Event "Live Chess"]
[Site "Chess.com"]
[Date "2023.05.21"]
[Round "-"]
[White "Leonid_Starozhilov"]
[Black "SimpleHarmonic1"]
[Result "1-0"]
[WhiteElo "2638"]
[BlackElo "2044"]
[TimeControl "300"]
[EndTime "7:39:34 PDT"]
[Termination "Leonid_Starozhilov won by resignation"]

1. b3 {[%clk 0:04:58.6]} 1... e5 {[%clk 0:04:55.8]} 2. Bb2 {[%clk 0:04:58.5]}
2... Nc6 {[%clk 0:04:55.1]} 3. e3 {[%clk 0:04:57.6]} 3... Nf6 {[%clk 0:04:52.4]}
4. Bb5 {[%clk 0:04:57.1]} 4... d6 {[%clk 0:04:50.1]} 5. d4 {[%clk 0:04:55.3]}
5... exd4 {[%clk 0:04:46.5]} 6. Qxd4 {[%clk 0:04:51.8]} 6... a6 {[%clk
0:04:43.9]} 7. Bxc6+ {[%clk 0:04:49.7]} 7... bxc6 {[%clk 0:04:43.8]} 8. Nf3
{[%clk 0:04:48.8]} 8... Be7 {[%clk 0:04:43.3]} 9. c4 {[%clk 0:04:46.7]} 9... O-O
{[%clk 0:04:42.4]} 10. O-O {[%clk 0:04:45.1]} 10... Ne8 {[%clk 0:04:40.4]} 11.
Nc3 {[%clk 0:04:42.6]} 11... Bf6 {[%clk 0:04:39.9]} 12. Qd2 {[%clk 0:04:41.5]}
12... Bg4 {[%clk 0:04:33.8]} 13. Nd4 {[%clk 0:04:37.7]} 13... c5 {[%clk
0:04:32.7]} 14. Nde2 {[%clk 0:04:36.3]} 14... g6 {[%clk 0:04:28.4]} 15. h3
{[%clk 0:04:35.4]} 15... Bd7 {[%clk 0:04:23.2]} 16. Rad1 {[%clk 0:04:33]} 16...
Bc6 {[%clk 0:04:18.8]} 17. Nf4 {[%clk 0:04:31.9]} 17... Bg7 {[%clk 0:04:11.8]}
18. Ncd5 {[%clk 0:04:29.9]} 18... Nf6 {[%clk 0:04:09.8]} 19. f3 {[%clk
0:04:23.6]} 19... Nxd5 {[%clk 0:04:02.1]} 20. cxd5 {[%clk 0:04:20.8]} 20... Bxb2
{[%clk 0:03:59.3]} 21. Qxb2 {[%clk 0:04:19.2]} 21... Bb5 {[%clk 0:03:54.8]} 22.
Rfe1 {[%clk 0:04:17.6]} 22... Qe7 {[%clk 0:03:34.6]} 23. e4 {[%clk 0:04:11.4]}
23... Rae8 {[%clk 0:03:32.9]} 24. Qf2 {[%clk 0:04:08.2]} 24... Qe5 {[%clk
0:03:28.4]} 25. Qg3 {[%clk 0:04:02.2]} 25... Kh8 {[%clk 0:03:14]} 26. h4 {[%clk
0:04:00.6]} 26... h5 {[%clk 0:03:11.8]} 27. Kh2 {[%clk 0:03:53.2]} 27... Kh7
{[%clk 0:03:07.6]} 28. Rc1 {[%clk 0:03:50.6]} 28... Qe7 {[%clk 0:02:58.3]} 29.
a4 {[%clk 0:03:48.5]} 29... Bd7 {[%clk 0:02:56.3]} 30. b4 {[%clk 0:03:45.6]}
30... cxb4 {[%clk 0:02:33.7]} 31. Rxc7 {[%clk 0:03:43.4]} 31... Rc8 {[%clk
0:02:32.6]} 32. Rb7 {[%clk 0:03:40.3]} 32... a5 {[%clk 0:02:31.3]} 33. Ne2
{[%clk 0:03:25.4]} 33... Bxa4 {[%clk 0:02:29.4]} 34. Rxe7 {[%clk 0:03:23.6]} 1-0

[Event "Live Chess"]
[Site "Chess.com"]
[Date "2023.05.21"]
[Round "-"]
[White "stevochess11"]
[Black "HadesLearmonth"]
[Result "1-0"]
[WhiteElo "1667"]
[BlackElo "1209"]
[TimeControl "300"]
[EndTime "7:39:36 PDT"]
[Termination "stevochess11 won by resignation"]

1. d4 {[%clk 0:04:57.4]} 1... d5 {[%clk 0:04:57.8]} 2. Nf3 {[%clk 0:04:55.5]}
2... Nf6 {[%clk 0:04:55.4]} 3. e3 {[%clk 0:04:52.5]} 3... e6 {[%clk 0:04:53.7]}
4. Bd3 {[%clk 0:04:51.6]} 4... Bd6 {[%clk 0:04:52.7]} 5. O-O {[%clk 0:04:50.5]}
5... O-O {[%clk 0:04:51.2]} 6. Nbd2 {[%clk 0:04:49.6]} 6... Nc6 {[%clk
0:04:49.5]} 7. c3 {[%clk 0:04:44.8]} 7... e5 {[%clk 0:04:48.3]} 8. dxe5 {[%clk
0:04:42.7]} 8... Nxe5 {[%clk 0:04:46.4]} 9. Nxe5 {[%clk 0:04:41.8]} 9... Bxe5
{[%clk 0:04:45.4]} 10. Nf3 {[%clk 0:04:40.2]} 10... Qd6 {[%clk 0:04:43.7]} 11.
Nxe5 {[%clk 0:04:38.6]} 11... Qxe5 {[%clk 0:04:43.6]} 12. f4 {[%clk 0:04:32.3]}
12... Qe6 {[%clk 0:04:33.4]} 13. Rf3 {[%clk 0:04:21.5]} 13... Ne4 {[%clk
0:04:29.3]} 14. Rh3 {[%clk 0:04:18.5]} 14... Qg6 {[%clk 0:04:20.2]} 15. Bxe4
{[%clk 0:04:05.2]} 15... dxe4 {[%clk 0:04:15.7]} 16. Rg3 {[%clk 0:04:04.3]}
16... Qb6 {[%clk 0:04:05.7]} 17. Qh5 {[%clk 0:03:59.3]} 17... Be6 {[%clk
0:03:53.4]} 18. f5 {[%clk 0:03:58]} 18... Bc4 {[%clk 0:03:49.4]} 19. Rh3 {[%clk
0:03:51]} 19... h6 {[%clk 0:03:41.2]} 20. Bd2 {[%clk 0:03:46.9]} 20... Rad8
{[%clk 0:03:37]} 21. Be1 {[%clk 0:03:45.3]} 21... Rd3 {[%clk 0:03:22.5]} 22. Bf2
{[%clk 0:03:43.1]} 22... Rfd8 {[%clk 0:03:18.3]} 23. Rh4 {[%clk 0:03:30.4]}
23... Rd1+ {[%clk 0:03:11]} 24. Rxd1 {[%clk 0:03:20.7]} 24... Rxd1+ {[%clk
0:03:09.7]} 25. Qxd1 {[%clk 0:03:19.6]} 25... Qxb2 {[%clk 0:03:07.6]} 26. f6
{[%clk 0:03:13.9]} 26... g5 {[%clk 0:02:59.9]} 27. Rxh6 {[%clk 0:03:09.5]} 1-0

[Event "Live Chess"]
[Site "Chess.com"]
[Date "2023.05.21"]
[Round "-"]
[White "wot-not"]
[Black "TheSmoulderingMaster"]
[Result "0-1"]
[WhiteElo "1522"]
[BlackElo "1673"]
[TimeControl "300"]
[EndTime "7:39:38 PDT"]
[Termination "TheSmoulderingMaster won by resignation"]

1. d4 {[%clk 0:04:57.3]} 1... Nf6 {[%clk 0:04:58.4]} 2. c4 {[%clk 0:04:56.6]}
2... d6 {[%clk 0:04:57.7]} 3. Nc3 {[%clk 0:04:55.9]} 3... g6 {[%clk 0:04:57.1]}
4. Bg5 {[%clk 0:04:06.7]} 4... c6 {[%clk 0:03:40.4]} 5. Qd2 {[%clk 0:03:58.6]}
5... Bg7 {[%clk 0:03:38]} 6. O-O-O {[%clk 0:03:55.2]} 6... O-O {[%clk
0:03:36.8]} 7. Bh6 {[%clk 0:03:53.6]} 7... Qa5 {[%clk 0:03:33.5]} 8. Bxg7 {[%clk
0:03:51.5]} 8... Kxg7 {[%clk 0:03:32.4]} 9. f3 {[%clk 0:03:46.2]} 9... b5 {[%clk
0:03:31.1]} 10. cxb5 {[%clk 0:03:44.3]} 10... cxb5 {[%clk 0:03:30.3]} 11. e4
{[%clk 0:03:40.8]} 11... b4 {[%clk 0:03:28.9]} 12. Nd5 {[%clk 0:03:29.5]} 12...
Qxa2 {[%clk 0:03:25.7]} 13. Nxf6 {[%clk 0:03:27.4]} 13... b3 {[%clk 0:03:21.9]}
14. Qd3 {[%clk 0:03:23.5]} 14... exf6 {[%clk 0:03:13.4]} 15. Nh3 {[%clk
0:03:14.5]} 15... Bxh3 {[%clk 0:03:06.2]} 16. gxh3 {[%clk 0:03:13.2]} 16... Rc8+
{[%clk 0:03:05.4]} 17. Kd2 {[%clk 0:03:11.9]} 17... Qxb2+ {[%clk 0:03:01.2]} 18.
Ke1 {[%clk 0:03:08.2]} 18... Rc3 {[%clk 0:02:57.3]} 19. Qe2 {[%clk 0:03:02.5]}
19... Rc2 {[%clk 0:02:50.1]} 20. Qb5 {[%clk 0:02:51.7]} 20... Qc3+ {[%clk
0:02:44.8]} 0-1

[Event "Live Chess"]
[Site "Chess.com"]
[Date "2023.05.21"]
[Round "-"]
[White "Dhaydon19"]
[Black "GMHarry-youtube"]
[Result "1-0"]
[WhiteElo "2691"]
[BlackElo "2027"]
[TimeControl "300"]
[EndTime "7:39:42 PDT"]
[Termination "Dhaydon19 won on time"]

1. c4 {[%clk 0:04:57.1]} 1... Nf6 {[%clk 0:04:58.2]} 2. Nf3 {[%clk 0:04:54.6]}
2... c5 {[%clk 0:04:57.2]} 3. g3 {[%clk 0:04:54.2]} 3... g6 {[%clk 0:04:55.2]}
4. Bg2 {[%clk 0:04:53.7]} 4... Bg7 {[%clk 0:04:54.2]} 5. O-O {[%clk 0:04:53.3]}
5... O-O {[%clk 0:04:51.3]} 6. Nc3 {[%clk 0:04:52.9]} 6... d6 {[%clk 0:04:48.8]}
7. d4 {[%clk 0:04:52.2]} 7... cxd4 {[%clk 0:04:44.4]} 8. Nxd4 {[%clk 0:04:51.2]}
8... a6 {[%clk 0:04:41.9]} 9. b3 {[%clk 0:04:50]} 9... Qc7 {[%clk 0:04:34.1]}
10. Bb2 {[%clk 0:04:48.8]} 10... Bd7 {[%clk 0:04:33.2]} 11. Rc1 {[%clk
0:04:47.7]} 11... Nc6 {[%clk 0:04:32]} 12. Nd5 {[%clk 0:04:46.6]} 12... Qd8
{[%clk 0:04:24.4]} 13. Nxf6+ {[%clk 0:04:44.4]} 13... Bxf6 {[%clk 0:04:21.7]}
14. Nxc6 {[%clk 0:04:44]} 14... Bxc6 {[%clk 0:04:17.1]} 15. Bxf6 {[%clk
0:04:42.9]} 15... exf6 {[%clk 0:04:12.8]} 16. Qd2 {[%clk 0:04:39.1]} 16... Qc7
{[%clk 0:04:09.8]} 17. Rfd1 {[%clk 0:04:37.5]} 17... Rad8 {[%clk 0:04:01.1]} 18.
Qf4 {[%clk 0:04:35.9]} 18... Bxg2 {[%clk 0:03:46.7]} 19. Kxg2 {[%clk 0:04:34.7]}
19... Qc6+ {[%clk 0:03:45.1]} 20. Qf3 {[%clk 0:04:31.5]} 20... Rd7 {[%clk
0:03:38.4]} 21. Rd5 {[%clk 0:04:27.5]} 21... f5 {[%clk 0:03:33.2]} 22. h4 {[%clk
0:04:24]} 22... Rfd8 {[%clk 0:03:31.4]} 23. h5 {[%clk 0:04:22.5]} 23... Re7
{[%clk 0:03:10.2]} 24. Rcd1 {[%clk 0:04:19.2]} 24... Rde8 {[%clk 0:02:51.8]} 25.
e3 {[%clk 0:04:16.3]} 25... Re6 {[%clk 0:02:45.6]} 26. h6 {[%clk 0:04:12.1]}
26... Rd8 {[%clk 0:02:30.2]} 27. Qf4 {[%clk 0:04:07.5]} 27... Kf8 {[%clk
0:02:24.1]} 28. Qd4 {[%clk 0:04:05]} 28... f6 {[%clk 0:02:17.5]} 29. Kg1 {[%clk
0:04:00]} 29... Ke7 {[%clk 0:02:08.1]} 30. Qa7 {[%clk 0:03:54.1]} 30... Qc7
{[%clk 0:01:42.8]} 31. c5 {[%clk 0:03:50.3]} 31... Rd7 {[%clk 0:01:10]} 32. b4
{[%clk 0:03:44.7]} 32... Qc6 {[%clk 0:00:37.9]} 33. Qb8 {[%clk 0:03:38]} 33...
Rd8 {[%clk 0:00:17.4]} 34. cxd6+ {[%clk 0:03:35.5]} 34... Rexd6 {[%clk
0:00:14.5]} 35. Qxd8+ {[%clk 0:03:33.5]} 35... Rxd8 {[%clk 0:00:13.2]} 36. Rxd8
{[%clk 0:03:32.4]} 36... Qc7 {[%clk 0:00:12.9]} 37. Rg8 {[%clk 0:03:29.5]} 37...
Ke6 {[%clk 0:00:11.6]} 38. Rg7 {[%clk 0:03:28.2]} 38... Qc2 {[%clk 0:00:11.1]}
39. Rd4 {[%clk 0:03:25.7]} 39... Qc1+ {[%clk 0:00:09.5]} 40. Kg2 {[%clk
0:03:24.2]} 40... Qc6+ {[%clk 0:00:09.3]} 41. Kh2 {[%clk 0:03:23.5]} 41... Qc2
{[%clk 0:00:08.2]} 42. Kg2 {[%clk 0:03:19]} 42... Qc6+ {[%clk 0:00:07.3]} 43.
Kh2 {[%clk 0:03:16.5]} 43... Qc2 {[%clk 0:00:06.1]} 44. Rf4 {[%clk 0:03:16.2]}
44... g5 {[%clk 0:00:04.7]} 45. Rf3 {[%clk 0:03:11.7]} 45... Qe4 {[%clk
0:00:04]} 46. Rxh7 {[%clk 0:03:04.5]} 46... Qxf3 {[%clk 0:00:02.6]} 47. Kg1
{[%clk 0:03:03.8]} 47... Qd1+ {[%clk 0:00:01.7]} 48. Kg2 {[%clk 0:03:03.2]}
48... g4 {[%clk 0:00:01.6]} 49. Rc7 {[%clk 0:02:58.9]} 49... Qf3+ {[%clk
0:00:01.5]} 50. Kg1 {[%clk 0:02:57.7]} 50... Qd1+ {[%clk 0:00:00.9]} 51. Kh2
{[%clk 0:02:57.3]} 51... Qf3 {[%clk 0:00:00.5]} 52. Rc2 {[%clk 0:02:55.8]} 52...
Qxf2+ {[%clk 0:00:00.4]} 53. Rxf2 {[%clk 0:02:54.6]} 53... Ke5 {[%clk
0:00:00.3]} 54. h7 {[%clk 0:02:53.4]} 54... Ke6 {[%clk 0:00:00.2]} 55. h8=Q
{[%clk 0:02:52]} 55... Ke5 {[%clk 0:00:00.1]} 56. Qh7 {[%clk 0:02:50.9]} 1-0

[Event "Live Chess"]
[Site "Chess.com"]
[Date "2023.05.21"]
[Round "-"]
[White "McSlash1"]
[Black "diana21strabt"]
[Result "1-0"]
[WhiteElo "2008"]
[BlackElo "1739"]
[TimeControl "300"]
[EndTime "7:39:44 PDT"]
[Termination "McSlash1 won by resignation"]

1. e4 {[%clk 0:04:59.3]} 1... d5 {[%clk 0:04:53.3]} 2. exd5 {[%clk 0:04:59.2]}
2... Qxd5 {[%clk 0:04:52.3]} 3. Nc3 {[%clk 0:04:58.6]} 3... Qa5 {[%clk
0:04:50.3]} 4. d4 {[%clk 0:04:57.6]} 4... Nf6 {[%clk 0:04:49.5]} 5. Bd2 {[%clk
0:04:56.1]} 5... Bg4 {[%clk 0:04:48.2]} 6. f3 {[%clk 0:04:55.8]} 6... Bh5 {[%clk
0:04:47]} 7. h4 {[%clk 0:04:55.5]} 7... h6 {[%clk 0:04:40.5]} 8. Nge2 {[%clk
0:04:53.5]} 8... Nc6 {[%clk 0:04:38.6]} 9. Nf4 {[%clk 0:04:51.9]} 9... O-O-O
{[%clk 0:04:31.2]} 10. Nxh5 {[%clk 0:04:48.7]} 10... Qxh5 {[%clk 0:04:29.3]} 11.
Qe2 {[%clk 0:04:45.9]} 11... Nxd4 {[%clk 0:04:23.8]} 12. Qd3 {[%clk 0:04:38.4]}
12... e5 {[%clk 0:03:55.5]} 13. g4 {[%clk 0:04:30]} 13... Nxg4 {[%clk
0:03:45.7]} 14. fxg4 {[%clk 0:04:29.9]} 14... Qxg4 {[%clk 0:03:42]} 15. Bh3
{[%clk 0:04:29.5]} 15... Nf3+ {[%clk 0:03:32.1]} 16. Qxf3 {[%clk 0:04:28]} 16...
Qxh3 {[%clk 0:03:30.3]} 17. Qxh3+ {[%clk 0:04:27.8]} 17... Kb8 {[%clk
0:03:25.2]} 18. O-O-O {[%clk 0:04:27.4]} 1-0

[Event "Live Chess"]
[Site "Chess.com"]
[Date "2023.05.21"]
[Round "-"]
[White "hturner40"]
[Black "WilliamofOrange16th"]
[Result "0-1"]
[WhiteElo "1794"]
[BlackElo "1862"]
[TimeControl "300"]
[EndTime "7:39:46 PDT"]
[Termination "WilliamofOrange16th won on time"]

1. Nf3 {[%clk 0:04:56]} 1... d6 {[%clk 0:04:58.9]} 2. g3 {[%clk 0:04:52]} 2...
Nf6 {[%clk 0:04:57]} 3. Bg2 {[%clk 0:04:50.2]} 3... g6 {[%clk 0:04:56.7]} 4. O-O
{[%clk 0:04:48]} 4... Bg7 {[%clk 0:04:56.3]} 5. c4 {[%clk 0:04:42.9]} 5... c5
{[%clk 0:04:55.2]} 6. Nc3 {[%clk 0:04:40.6]} 6... Nc6 {[%clk 0:04:54.2]} 7. d4
{[%clk 0:04:39.3]} 7... cxd4 {[%clk 0:04:52.5]} 8. Nxd4 {[%clk 0:04:37.6]} 8...
Nxd4 {[%clk 0:04:52.2]} 9. Qxd4 {[%clk 0:04:35.9]} 9... O-O {[%clk 0:04:51.6]}
10. Qh4 {[%clk 0:04:32.3]} 10... a6 {[%clk 0:04:39.8]} 11. Bg5 {[%clk
0:04:29.7]} 11... Rb8 {[%clk 0:04:36.4]} 12. Rfd1 {[%clk 0:04:24.5]} 12... Be6
{[%clk 0:04:27.8]} 13. c5 {[%clk 0:04:20]} 13... d5 {[%clk 0:04:19.4]} 14. Nxd5
{[%clk 0:03:56.9]} 14... Bxd5 {[%clk 0:04:13.5]} 15. e4 {[%clk 0:03:47.9]} 15...
Qc7 {[%clk 0:04:07.3]} 16. exd5 {[%clk 0:03:38.4]} 16... Qxc5 {[%clk 0:04:05.1]}
17. Rac1 {[%clk 0:03:34.3]} 17... Qb6 {[%clk 0:03:57.2]} 18. Bf4 {[%clk
0:03:23.3]} 18... Rbc8 {[%clk 0:03:54.9]} 19. b3 {[%clk 0:03:10]} 19... Rfd8
{[%clk 0:03:38.5]} 20. Bh3 {[%clk 0:01:55.1]} 20... Rxc1 {[%clk 0:03:34.5]} 21.
Bxc1 {[%clk 0:01:39]} 21... Rxd5 {[%clk 0:03:26.6]} 22. Rxd5 {[%clk 0:01:30.9]}
22... Nxd5 {[%clk 0:03:26.5]} 23. Bg2 {[%clk 0:01:27.8]} 23... e6 {[%clk
0:03:22.8]} 24. Bxd5 {[%clk 0:01:13.3]} 24... exd5 {[%clk 0:03:20.6]} 25. Bh6
{[%clk 0:01:05]} 25... Bxh6 {[%clk 0:03:12.9]} 26. Qxh6 {[%clk 0:01:03.5]} 26...
d4 {[%clk 0:03:03.4]} 27. Qd2 {[%clk 0:00:58.3]} 27... Qc5 {[%clk 0:02:58.8]}
28. Kf1 {[%clk 0:00:45.9]} 28... b5 {[%clk 0:02:56.7]} 29. Ke1 {[%clk
0:00:41.9]} 29... Qc3 {[%clk 0:02:53.1]} 30. b4 {[%clk 0:00:24.2]} 30... f5
{[%clk 0:02:34.3]} 31. h4 {[%clk 0:00:20.7]} 31... Qc4 {[%clk 0:02:31.7]} 32.
Kd1 {[%clk 0:00:11.8]} 32... Kf7 {[%clk 0:02:26.7]} 33. h5 {[%clk 0:00:06.2]}
33... Ke6 {[%clk 0:02:10.1]} 34. hxg6 {[%clk 0:00:04]} 34... hxg6 {[%clk
0:02:10]} 35. Qh6 {[%clk 0:00:02.1]} 35... Qd3+ {[%clk 0:02:01.2]} 36. Ke1
{[%clk 0:00:00.9]} 36... Qb1+ {[%clk 0:01:59.1]} 0-1

[Event "Live Chess"]
[Site "Chess.com"]
[Date "2023.05.21"]
[Round "-"]
[White "luckywookie"]
[Black "Biranidun"]
[Result "0-1"]
[WhiteElo "811"]
[BlackElo "2519"]
[TimeControl "300"]
[EndTime "7:39:51 PDT"]
[Termination "Biranidun won by checkmate"]

1. e4 {[%clk 0:04:56.8]} 1... c5 {[%clk 0:04:59.1]} 2. c3 {[%clk 0:04:55.1]}
2... Nf6 {[%clk 0:04:58.1]} 3. e5 {[%clk 0:04:53.5]} 3... Nd5 {[%clk 0:04:57.7]}
4. Nf3 {[%clk 0:04:52.7]} 4... d6 {[%clk 0:04:56.7]} 5. Bc4 {[%clk 0:04:51.5]}
5... Nb6 {[%clk 0:04:55.3]} 6. exd6 {[%clk 0:04:49.1]} 6... Nxc4 {[%clk
0:04:49]} 7. dxe7 {[%clk 0:04:47.4]} 7... Qxe7+ {[%clk 0:04:47.8]} 8. Qe2 {[%clk
0:04:45.5]} 8... Qxe2+ {[%clk 0:04:46.6]} 9. Kxe2 {[%clk 0:04:44.9]} 9... Bg4
{[%clk 0:04:45.7]} 10. Re1 {[%clk 0:04:43.6]} 10... Nc6 {[%clk 0:04:40.7]} 11.
Kf1+ {[%clk 0:04:42.3]} 11... Be7 {[%clk 0:04:39.1]} 12. d3 {[%clk 0:04:37]}
12... Bxf3 {[%clk 0:04:38]} 13. gxf3 {[%clk 0:04:35.6]} 13... N4e5 {[%clk
0:04:37.5]} 14. d4 {[%clk 0:04:32.3]} 14... cxd4 {[%clk 0:04:36.3]} 15. f4
{[%clk 0:04:31.1]} 15... Nd3 {[%clk 0:04:34.4]} 16. Rxe7+ {[%clk 0:04:25.3]}
16... Kxe7 {[%clk 0:04:33.1]} 17. Bd2 {[%clk 0:04:24.8]} 17... Rad8 {[%clk
0:04:30.7]} 18. Na3 {[%clk 0:04:24.7]} 18... Rhe8 {[%clk 0:04:28.6]} 19. Nc4
{[%clk 0:04:23.5]} 19... Kf6 {[%clk 0:04:27.4]} 20. Ne5 {[%clk 0:04:19.3]} 20...
Ncxe5 {[%clk 0:04:26.4]} 21. fxe5+ {[%clk 0:04:18.5]} 21... Nxe5 {[%clk
0:04:25]} 22. Re1 {[%clk 0:04:16.8]} 22... Nf3 {[%clk 0:04:23.7]} 23. Rxe8
{[%clk 0:04:14.1]} 23... Nxd2+ {[%clk 0:04:23.1]} 24. Kg2 {[%clk 0:04:12.2]}
24... Rxe8 {[%clk 0:04:23]} 25. cxd4 {[%clk 0:04:10.8]} 25... Re2 {[%clk
0:04:21.2]} 26. d5 {[%clk 0:04:08.6]} 26... Kf5 {[%clk 0:04:15.9]} 27. d6 {[%clk
0:04:07.2]} 27... Ne4 {[%clk 0:04:14.4]} 28. d7 {[%clk 0:04:06]} 28... Rxf2+
{[%clk 0:04:13.9]} 29. Kh3 {[%clk 0:04:02.8]} 29... Rd2 {[%clk 0:04:13.8]} 30.
d8=Q {[%clk 0:03:58.1]} 30... Rxd8 {[%clk 0:04:12.7]} 31. Kh4 {[%clk 0:03:57.2]}
31... Rd2 {[%clk 0:04:11.5]} 32. h3 {[%clk 0:03:56.5]} 32... Rh2 {[%clk
0:04:04.3]} 33. b4 {[%clk 0:03:56.4]} 33... g5+ {[%clk 0:04:03.4]} 34. Kh5
{[%clk 0:03:54.7]} 34... Rxh3# {[%clk 0:04:03.3]} 0-1